bitfinex-derivatives/quotes_BNBF0:USTF0_20250507
["timestamp","ask_amount","ask_price","bid_price","bid_amount"]
[1746660986654,1.27545974,602.39,601.85,1.151]
[1746660986848,1.27545974,602.38,601.85,1.151]
[1746660987051,1.27545974,602.37,601.85,1.151]
[1746660987251,2.27983671,602.36,601.85,1.151]
[1746660987453,1.27545974,602.35,601.8,0.873]
[1746660987755,2.27983671,602.34,601.8,1.20533632]
[1746660988054,2.27983671,602.33,601.8,1.20533632]
[1746660988253,1.27545974,602.32,601.8,1.20533632]
[1746660988456,1.27545974,602.31,601.8,1.20533632]
[1746660988754,2.27983671,602.3,601.8,1.20533632]
[1746660988953,1.27545974,602.29,601.8,1.20533632]
[1746660989154,1.27545974,602.28,601.8,1.20533632]
[1746660989353,1.27545974,602.27,601.8,1.20533632]
[1746660989555,1.27545974,602.26,601.8,1.20533632]
[1746660989856,2.27983671,602.25,601.8,1.20533632]
[1746660990058,1.27545974,602.24,601.8,1.20533632]
[1746660990358,2.27983671,602.23,601.8,1.20533632]
[1746660990555,1.27545974,602.22,601.8,1.20533632]
[1746660990761,1.00437697,602.23,601.8,1.20533632]
[1746660991060,1.00437697,602.21,601.8,1.20533632]
[1746660991260,1.00437697,602.2,601.8,1.20533632]
[1746660991959,1.00437697,602.19,601.8,1.20533632]
[1746660992160,0.28902814,602.6,601.8,1.20533632]
[1746660992457,1.27522334,602.59,601.8,1.20533632]
[1746660992658,2.27944472,602.58,601.8,1.20533632]
[1746660992857,2.27944472,602.57,601.8,1.20533632]
[1746660993062,1.27522334,602.56,601.8,1.20533632]
[1746660993262,1.27692524,602.55,601.8,1.20533632]
[1746660993456,2.28114662,602.54,601.8,1.20533632]
[1746660993677,2.28114662,602.53,601.8,1.20533632]
[1746660993861,1.27692524,602.52,601.8,1.20533632]
[1746660994155,2.28114662,602.51,601.81,0.3323308]
[1746660994356,1.27692524,602.5,601.81,0.3323308]
[1746660994558,2.28114662,602.49,601.81,0.3323308]
[1746660994759,1.27692524,602.48,601.81,0.3323308]
[1746660994965,1.27692524,602.47,601.81,0.3323308]
[1746660995163,1.27655082,602.46,601.81,0.3323308]
[1746660995360,1.27655082,602.45,601.81,0.3323308]
[1746660995664,2.2807722,602.44,601.81,0.3323308]
[1746660995860,1.27655082,602.43,601.81,0.3323308]
[1746660996062,2.2807722,602.42,601.81,0.3323308]
[1746660996262,1.27655082,602.41,601.81,0.3323308]
[1746660996463,2.2807722,602.4,601.81,0.3323308]
[1746660996660,2.2807722,602.39,601.81,0.3323308]
[1746660996858,1.27655082,602.38,601.81,0.3323308]
[1746660997060,2.2807722,602.37,601.81,0.3323308]
[1746660997359,1.27655082,602.36,601.81,0.3323308]
[1746660997563,1.00422138,602.37,601.81,0.3323308]
[1746660997962,1.00422138,602.36,601.81,0.3323308]
[1746660998566,1.00422138,602.35,601.81,0.3323308]
[1746660999168,1.00422138,602.34,601.81,0.3323308]
[1746660999663,0.28898134,602.74,601.81,0.3323308]
[1746660999868,2.27593558,602.73,601.81,0.3323308]
[1746661000068,1.27332321,602.72,601.81,0.3323308]
[1746661000269,1.27332321,602.71,601.81,0.3323308]
[1746661000565,1.27332321,602.7,601.81,1.5323308]
[1746661000768,1.27341592,602.69,601.81,1.5323308]
[1746661001069,2.27602829,602.68,601.81,1.5323308]
[1746661001262,1.27341592,602.67,601.81,1.5323308]
[1746661001465,2.27602829,602.66,601.81,1.5323308]
[1746661001667,1.27341592,602.65,601.81,1.5323308]
[1746661001866,1.27341592,602.64,601.81,1.5323308]
[1746661002065,2.27602829,602.63,601.81,1.5323308]
[1746661002265,1.27341592,602.62,601.81,1.5323308]
[1746661002569,1.27341592,602.61,601.81,1.5323308]
[1746661002769,1.27341592,602.6,601.81,1.5323308]
[1746661002970,1.27341592,602.59,601.81,1.5323308]
[1746661003270,2.27602829,602.58,601.81,1.5323308]
[1746661003569,2.27602829,602.57,601.81,1.5323308]
[1746661003870,2.27602829,602.56,601.81,1.5323308]
[1746661004074,1.27341592,602.55,601.81,1.5323308]
[1746661004373,1.27341592,602.54,601.81,1.5323308]
[1746661004567,1.27341592,602.53,601.81,1.5323308]
[1746661004871,2.27602829,602.52,601.81,1.5323308]
[1746661005070,1.27341592,602.51,601.81,1.5323308]
[1746661005266,0.28892376,602.84,601.81,1.5323308]
[1746661005267,2.27602829,602.5,601.81,1.5323308]
[1746661005470,1.00261237,602.5,601.81,1.5323308]
[1746661005971,1.00261237,602.49,601.81,1.5323308]
[1746661006370,1.00261237,602.48,601.81,1.5323308]
[1746661006766,1.00261237,602.47,601.81,1.5323308]
[1746661007471,0.28893575,602.84,601.81,1.5323308]
[1746661007767,2.26906031,602.83,601.81,1.5323308]
[1746661007971,2.26906031,602.82,601.81,1.5323308]
[1746661008267,2.2690483,602.81,601.81,1.5323308]
[1746661008472,2.2690483,602.8,601.81,1.5323308]
[1746661008670,1.26878387,602.79,601.81,1.5323308]
[1746661008870,1.26878387,602.78,601.81,1.5323308]
[1746661009067,1.26878387,602.77,601.81,1.5323308]
[1746661009272,2.2690483,602.76,601.81,1.5323308]
[1746661009473,2.2690483,602.75,601.81,1.5323308]
[1746661009676,1.26878387,602.74,601.81,1.5323308]
[1746661009873,2.2690483,602.73,601.81,1.5323308]
[1746661010072,1.26767796,602.72,601.81,1.5323308]
[1746661010269,2.26794239,602.71,601.81,1.5323308]
[1746661010474,2.26794239,602.7,601.81,1.5323308]
[1746661010674,2.26794239,602.69,601.81,1.5323308]
[1746661010975,1.26767796,602.68,601.81,1.5323308]
[1746661011175,1.26767796,602.67,601.81,1.5323308]
[1746661011371,2.26794239,602.66,601.81,1.5323308]
[1746661011575,1.26767796,602.65,601.81,1.5323308]
[1746661011775,2.26794239,602.64,601.81,1.5323308]
[1746661012071,2.26794239,602.63,601.81,1.5323308]
[1746661012275,1.26767796,602.62,601.81,1.5323308]
[1746661012470,1.26767796,602.61,601.81,1.5323308]
[1746661012677,1.26767796,602.6,601.81,1.5323308]
[1746661012876,2.26794239,602.59,601.81,1.5323308]
[1746661013075,1.26904594,602.58,601.81,1.5323308]
[1746661013272,1.26904594,602.57,601.81,1.5323308]
[1746661013477,2.26931037,602.56,601.81,1.5323308]
[1746661013774,1.00026443,602.56,601.81,1.5323308]
[1746661013976,2.26920124,602.55,601.81,1.5323308]
[1746661014171,1.26893681,602.54,601.81,1.5323308]
[1746661014472,1.00026443,602.53,601.81,2.5393308]
[1746661014877,1.00026443,602.52,601.81,2.5393308]
[1746661015376,1.00026443,602.51,601.81,2.5393308]
[1746661015878,0.69762489,603.92,601.81,3.6423308]
[1746661016077,1.57359114,603.33,601.81,3.6423308]
[1746661016380,1.60020301,603.32,601.81,3.6423308]
[1746661016677,1.26870398,603.31,601.81,3.6423308]
[1746661016980,2.59987574,603.3,601.81,3.6423308]
[1746661017178,1.26870398,603.29,601.81,3.6423308]
[1746661017375,2.57325288,603.28,601.81,4.8063308]
[1746661017576,1.26870398,603.27,601.81,4.8063308]
[1746661017781,1.57359114,603.26,601.81,4.8063308]
[1746661017978,1.26870398,603.25,601.81,4.8063308]
[1746661018176,2.26836572,603.24,601.81,4.8063308]
[1746661018379,1.26870398,603.23,601.81,4.8063308]
[1746661018678,2.57325262,603.22,601.81,4.8063308]
[1746661018875,1.57359088,603.21,601.81,4.8063308]
[1746661019077,1.26870398,603.2,601.81,4.8063308]
[1746661019276,2.26836572,603.19,601.81,4.8063308]
[1746661019477,1.57297231,603.18,601.81,4.8063308]
[1746661019679,1.26808541,603.17,601.81,4.8063308]
[1746661019878,2.57263405,603.16,601.81,4.8063308]
[1746661020182,1.57297231,603.15,601.81,4.8063308]
[1746661020482,2.57263405,603.14,601.81,4.8063308]
[1746661020682,1.26808541,603.13,601.81,4.8063308]
[1746661020980,2.26771228,603.12,601.81,4.8063308]
[1746661021181,1.57293762,603.11,601.81,4.8063308]
[1746661021381,2.26771246,603.1,601.81,4.8063308]
[1746661021681,2.26771246,603.09,601.81,4.8063308]
[1746661021882,1.26805072,603.08,601.81,4.8063308]
[1746661022083,1.26805072,603.07,601.81,4.8063308]
[1746661022378,2.57259936,603.06,601.81,4.8063308]
[1746661022583,1.26805072,603.05,601.81,4.8063308]
[1746661022779,2.26771246,603.04,601.81,4.8063308]
[1746661023079,1.57293762,603.03,601.81,4.8063308]
[1746661023283,2.26771246,603.02,601.81,4.8063308]
[1746661023479,1.26805072,603.01,601.81,4.8063308]
[1746661023683,1.26805072,603.0,601.81,4.8063308]
[1746661023883,2.26771246,602.99,601.81,4.8063308]
[1746661024185,1.26805072,602.98,601.81,4.8063308]
[1746661024387,2.26771246,602.97,601.81,4.8063308]
[1746661024585,1.26805072,602.96,601.81,4.8063308]
[1746661024779,1.26805072,602.95,601.81,4.8063308]
[1746661024979,1.57293817,602.94,601.81,4.8063308]
[1746661025178,1.26805072,602.93,601.82,0.28887819]
[1746661025385,2.26771246,602.92,601.82,0.28887819]
[1746661025577,2.26771246,602.91,601.84,0.33231423]
[1746661025781,1.26805072,602.9,601.84,0.33231423]
[1746661025985,2.26771246,602.89,601.84,0.33231423]
[1746661026180,1.26805072,602.88,601.84,0.33231423]
[1746661026387,1.26791169,602.87,601.84,0.33231423]
[1746661026586,1.26791169,602.86,601.84,0.33231423]
[1746661026782,2.26757343,602.85,601.84,0.33231423]
[1746661026982,1.26791169,602.84,601.84,0.33231423]
[1746661027186,1.26791169,602.83,601.84,0.33231423]
[1746661027384,1.26791169,602.82,601.84,0.33231423]
[1746661027582,2.26757343,602.81,601.84,0.33231423]
[1746661027786,1.26791169,602.8,601.84,0.33231423]
[1746661028085,2.26757343,602.79,601.84,0.33231423]
[1746661028386,2.26757449,602.78,601.84,0.33231423]
[1746661028582,1.26791275,602.77,601.84,0.33231423]
[1746661028785,1.26791275,602.76,601.84,0.33231423]
[1746661028981,2.26757449,602.75,601.85,1.309]
[1746661029186,1.26791275,602.74,601.86,0.33230319]
[1746661029483,0.99966174,602.75,601.86,0.33230319]
[1746661029484,1.26791275,602.73,601.86,0.33230319]
[1746661029683,1.26791275,602.72,601.86,0.33230319]
[1746661029885,1.26791275,602.71,601.86,0.33230319]
[1746661030086,2.27022464,602.7,601.86,0.33230319]
[1746661030283,1.2705629,602.69,601.86,0.33230319]
[1746661030488,1.2705629,602.68,601.86,0.33230319]
[1746661030688,0.28889498,602.84,601.86,0.33230319]
[1746661030689,2.27022464,602.67,601.86,0.33230319]
[1746661030890,2.27022464,602.66,601.86,0.33230319]
[1746661031085,1.2705629,602.65,601.86,0.33230319]
[1746661031289,1.2705629,602.64,601.86,0.33230319]
[1746661031483,1.2705629,602.63,601.86,0.33230319]
[1746661031685,2.27022464,602.62,601.86,0.33230319]
[1746661031891,1.2705629,602.61,601.86,0.33230319]
[1746661032087,2.27022464,602.6,601.86,0.33230319]
[1746661032391,1.2705629,602.59,601.86,0.33230319]
[1746661032591,0.99966174,602.6,601.86,0.33230319]
[1746661032592,1.2705629,602.58,601.86,0.33230319]
[1746661032787,2.27022464,602.57,601.86,0.33230319]
[1746661033085,2.27022464,602.56,601.86,0.33230319]
[1746661033290,1.2705629,602.55,601.86,0.33230319]
[1746661033490,1.2705629,602.54,601.86,0.33230319]
[1746661033691,2.27022464,602.53,601.86,0.33230319]
[1746661033990,1.2705629,602.52,601.86,0.33230319]
[1746661034185,0.99966174,602.52,601.86,0.33230319]
[1746661034389,1.27063607,602.51,601.86,0.33230319]
[1746661034588,0.99966174,602.51,601.86,0.33230319]
[1746661034888,0.99966174,602.5,601.86,0.33230319]
[1746661035190,0.99966174,602.49,601.86,0.33230319]
[1746661035589,0.99966174,602.48,601.86,0.33230319]
[1746661036190,0.99966174,602.47,601.86,0.33230319]
[1746661036690,0.28891416,602.82,601.86,0.33230319]
[1746661036887,1.26942308,602.81,601.86,0.33230319]
[1746661037087,1.26942308,602.8,601.86,0.33230319]
[1746661037291,1.26942308,602.79,601.86,0.33230319]
[1746661037491,2.26973662,602.78,601.86,0.33230319]
[1746661037793,2.26973662,602.77,601.86,0.33230319]
[1746661037989,1.26937676,602.76,601.86,0.33230319]
[1746661038287,1.26937676,602.75,601.86,0.33230319]
[1746661038485,2.26973662,602.74,601.86,0.33230319]
[1746661038687,1.26937676,602.73,601.86,0.33230319]
[1746661038887,1.26937676,602.72,601.86,0.33230319]
[1746661039092,1.26937676,602.71,601.86,0.33230319]
[1746661039288,2.26959481,602.7,601.86,0.33230319]
[1746661039485,1.26923459,602.69,601.86,0.33230319]
[1746661039690,2.26959445,602.68,601.86,0.33230319]
[1746661039893,2.26959445,602.67,601.86,0.33230319]
[1746661040092,1.00035986,602.67,601.86,0.33230319]
[1746661040395,2.26969972,602.66,601.86,0.33230319]
[1746661040588,2.26981698,602.65,601.86,0.33230319]
[1746661040893,1.26950567,602.64,601.86,0.33230319]
[1746661041093,1.26950567,602.63,601.86,0.33230319]
[1746661041393,2.26986553,602.62,601.86,0.33230319]
[1746661041593,1.26961921,602.61,601.86,0.33230319]
[1746661041796,1.26961921,602.6,601.86,0.33230319]
[1746661041995,2.26997907,602.59,601.86,0.33230319]
[1746661042296,2.26997907,602.58,601.86,0.33230319]
[1746661042495,1.00035986,602.58,601.86,0.33230319]
[1746661042694,2.27013233,602.57,601.86,0.33230319]
[1746661042896,2.27012043,602.56,601.86,0.33230319]
[1746661043091,1.00035986,602.55,601.86,0.33230319]
[1746661043396,2.27012139,602.54,601.87,1.157]
[1746661043597,1.26976153,602.53,601.88,0.33229215]
[1746661043798,2.27023939,602.52,601.88,0.33229215]
[1746661043996,1.26987953,602.51,601.88,0.33229215]
[1746661044198,1.26987953,602.5,601.88,0.33229215]
[1746661044390,1.26987953,602.49,601.88,0.33229215]
[1746661044596,1.26987953,602.48,601.88,0.33229215]
[1746661044795,1.26987953,602.47,601.88,0.33229215]
[1746661044995,2.27023939,602.46,601.88,0.33229215]
[1746661045192,1.26987953,602.45,601.88,0.33229215]
[1746661045392,2.27023939,602.44,601.88,0.33229215]
[1746661045592,1.00035986,602.44,601.88,0.33229215]
[1746661045892,1.00035986,602.43,601.88,0.33229215]
[1746661049803,0.28894895,602.76,601.88,0.33229215]
[1746661050100,1.26924208,602.75,601.88,0.33229215]
[1746661050300,1.26924208,602.74,601.88,0.33229215]
[1746661050601,2.27011089,602.73,601.88,0.33229215]
[1746661050896,1.26924208,602.72,601.88,0.33229215]
[1746661051095,1.26924208,602.71,601.88,0.33229215]
[1746661051301,1.26924208,602.7,601.89,0.852]
[1746661051499,2.27011089,602.69,601.9,0.3322811]
[1746661051698,1.26924208,602.68,601.9,0.3322811]
[1746661051899,1.26924208,602.67,601.9,0.3322811]
[1746661052099,2.27011089,602.66,601.9,0.3322811]
[1746661052299,1.26924208,602.65,601.9,0.3322811]
[1746661052499,1.26924208,602.64,601.9,0.3322811]
[1746661052698,1.26924208,602.63,601.9,0.3322811]
[1746661052900,1.26924208,602.62,601.9,0.3322811]
[1746661053101,1.26924208,602.61,601.9,0.3322811]
[1746661053301,1.26924208,602.6,601.9,0.3322811]
[1746661053503,1.26924208,602.59,601.9,0.3322811]
[1746661053704,1.26924208,602.58,601.9,0.3322811]
[1746661053899,2.27011089,602.57,601.9,0.3322811]
[1746661054103,1.26924208,602.56,601.9,0.3322811]
[1746661054303,1.26924208,602.55,601.9,0.3322811]
[1746661054511,2.27011089,602.54,601.9,0.3322811]
[1746661054709,1.26924208,602.53,601.9,0.3322811]
[1746661054906,1.26924208,602.52,601.9,0.3322811]
[1746661055109,1.26924208,602.51,601.9,0.3322811]
[1746661055310,2.27011089,602.5,601.9,0.3322811]
[1746661055511,1.26924208,602.49,601.9,0.3322811]
[1746661055704,1.26924208,602.48,601.9,0.3322811]
[1746661055908,1.00086881,602.47,601.9,0.3322811]
[1746661056307,1.00086881,602.46,601.9,0.3322811]
[1746661057013,1.00086881,602.45,601.9,0.3322811]
[1746661057815,0.28891296,602.84,601.9,0.3322811]
[1746661058012,1.27094023,602.83,601.9,0.3322811]
[1746661058315,2.27315241,602.82,601.9,0.3322811]
[1746661058513,1.27094023,602.81,601.9,0.3322811]
[1746661058713,1.27094023,602.8,601.9,0.3322811]
[1746661058915,1.27094023,602.79,601.9,0.3322811]
[1746661059214,2.27315241,602.78,601.9,0.3322811]
[1746661059415,1.27094023,602.77,601.9,0.3322811]
[1746661059609,1.27094023,602.76,601.9,0.3322811]
[1746661059910,1.27094023,602.75,601.9,0.3322811]
[1746661060110,1.27094023,602.74,601.9,1.2482811]
[1746661060310,1.27094023,602.73,601.9,1.2482811]
[1746661060510,1.27094023,602.72,601.9,1.2482811]
[1746661060711,1.27094023,602.71,601.9,1.2482811]
[1746661060914,2.27315241,602.7,601.9,1.2482811]
[1746661061116,1.27094023,602.69,601.9,1.2482811]
[1746661061317,1.27094023,602.68,601.9,1.2482811]
[1746661061517,2.27315241,602.67,601.9,1.2482811]
[1746661061718,1.27094023,602.66,601.9,1.2482811]
[1746661061918,1.27094023,602.65,601.9,2.5082811]
[1746661062118,1.27142726,602.64,601.9,2.5082811]
[1746661062318,1.27142726,602.63,601.9,2.5082811]
[1746661062516,2.27363944,602.62,601.9,2.5082811]
[1746661062715,1.27142726,602.61,601.9,2.5082811]
[1746661062921,1.27142726,602.6,601.9,3.8462811]
[1746661063118,1.27142726,602.59,601.9,3.8462811]
[1746661063320,2.27363944,602.58,601.9,3.8462811]
[1746661063518,1.27142726,602.57,601.9,3.8462811]
[1746661063820,2.27363944,602.56,601.9,3.8462811]
[1746661064119,0.33151002,603.3,601.9,3.8462811]
[1746661064120,2.27363944,602.55,601.9,3.8462811]
[1746661064321,2.27363944,602.54,601.9,3.8462811]
[1746661064519,1.27142726,602.53,601.9,3.8462811]
[1746661064820,2.27363944,602.52,601.9,3.8462811]
[1746661065019,2.27363944,602.51,601.9,3.8462811]
[1746661065215,1.27142726,602.5,601.9,3.8462811]
[1746661065415,1.27142726,602.49,601.9,3.8462811]
[1746661065616,2.27363944,602.48,601.9,3.8462811]
[1746661065820,1.27142726,602.47,601.9,3.8462811]
[1746661066120,1.00221218,602.46,601.9,3.8462811]
[1746661066321,1.00273533,602.45,601.9,3.8462811]
[1746661067022,1.00273533,602.44,601.9,3.8462811]
[1746661067222,0.28892856,602.81,601.9,3.8462811]
[1746661067427,1.27218834,602.8,601.9,3.8462811]
[1746661067618,2.27492621,602.79,601.9,3.8462811]
[1746661067822,1.27218834,602.78,601.9,3.8462811]
[1746661068024,1.27218834,602.77,601.9,3.8462811]
[1746661068318,2.27492621,602.76,601.9,4.7672811]
[1746661068524,1.27218834,602.75,601.9,4.7672811]
[1746661068824,2.27492621,602.74,601.9,4.7672811]
[1746661069022,1.27218834,602.73,601.9,4.7672811]
[1746661069219,1.27218834,602.72,601.9,4.7672811]
[1746661069419,1.27218834,602.71,601.9,4.7672811]
[1746661069622,1.27198021,602.7,601.9,4.7672811]
[1746661069818,1.27198021,602.69,601.9,4.7672811]
[1746661070023,1.27198021,602.68,601.9,4.7672811]
[1746661070223,2.27471808,602.67,601.9,4.7672811]
[1746661070422,1.27198021,602.66,601.9,4.7672811]
[1746661070618,1.00273787,602.67,601.9,4.7672811]
[1746661070619,1.27198021,602.65,601.9,4.7672811]
[1746661070820,2.27471808,602.64,601.9,4.7672811]
[1746661071023,1.27198021,602.63,601.9,4.7672811]
[1746661071220,2.27471808,602.62,601.9,4.7672811]
[1746661071420,1.27198021,602.61,601.9,4.7672811]
[1746661071726,2.27471808,602.6,601.9,4.7672811]
[1746661071925,1.27198021,602.59,601.9,4.7672811]
[1746661072126,0.28889857,602.81,601.9,4.7672811]
[1746661072127,2.27471808,602.58,601.9,4.7672811]
[1746661072427,1.27198021,602.57,601.9,4.7672811]
[1746661072628,1.27198021,602.56,601.9,4.7672811]
[1746661072828,1.27198021,602.55,601.9,4.7672811]
[1746661073029,2.27471808,602.54,601.9,4.7672811]
[1746661073229,1.27267002,602.53,601.9,4.7672811]
[1746661073425,1.27267002,602.52,601.9,4.7672811]
[1746661073631,1.27267002,602.51,601.9,4.7672811]
[1746661073824,2.27540789,602.5,601.9,4.7672811]
[1746661074028,1.27267002,602.49,601.9,4.7672811]
[1746661074226,1.27267002,602.48,601.9,4.7672811]
[1746661074526,1.00273787,602.48,601.9,4.7672811]
[1746661074732,1.00273787,602.47,601.9,4.7672811]
[1746661075526,1.00273787,602.46,601.9,4.7672811]
[1746661075730,1.00273787,602.45,601.9,4.7672811]
[1746661076332,0.28892856,602.81,601.9,4.7672811]
[1746661076533,1.27196305,602.8,601.9,4.7672811]
[1746661076831,1.27196305,602.79,601.9,4.7672811]
[1746661077034,1.27196305,602.78,601.9,4.7672811]
[1746661077230,1.27196305,602.77,601.9,4.7672811]
[1746661077532,1.27196305,602.76,601.9,4.7672811]
[1746661077729,1.27196305,602.75,601.9,4.7672811]
[1746661077930,2.27453455,602.74,601.9,4.7672811]
[1746661078231,2.27453455,602.73,601.9,4.7672811]
[1746661078432,1.27196305,602.72,601.9,4.7672811]
[1746661078627,1.27196305,602.71,601.9,4.7672811]
[1746661078832,2.27453455,602.7,601.9,4.7672811]
[1746661079027,1.27196305,602.69,601.9,4.7672811]
[1746661079230,2.27453455,602.68,601.9,4.7672811]
[1746661079431,1.27196305,602.67,601.9,4.7672811]
[1746661079628,2.27453455,602.66,601.9,4.7672811]
[1746661079831,1.27196305,602.65,601.9,4.7672811]
[1746661080030,2.27453455,602.64,601.9,4.7672811]
[1746661080232,1.27196305,602.63,601.9,4.7672811]
[1746661080432,1.27196305,602.62,601.9,4.7672811]
[1746661080634,1.27196305,602.61,601.9,4.7672811]
[1746661080833,1.27196305,602.6,601.9,4.7672811]
[1746661081031,1.27196305,602.59,601.9,4.7672811]
[1746661081232,1.27196305,602.58,601.9,4.7672811]
[1746661081432,2.27453455,602.57,601.9,4.7672811]
[1746661081635,1.27196305,602.56,601.9,4.7672811]
[1746661081935,1.27196305,602.55,601.9,4.7672811]
[1746661082136,2.27453455,602.54,601.9,4.7672811]
[1746661082339,1.27196305,602.53,601.9,4.7672811]
[1746661082536,1.27196305,602.52,601.9,4.7672811]
[1746661082832,1.27196305,602.51,601.9,4.7672811]
[1746661083032,1.27196305,602.5,601.9,4.7672811]
[1746661083238,2.27453455,602.49,601.9,4.7672811]
[1746661083539,1.27196305,602.48,601.9,4.7672811]
[1746661083738,2.27453455,602.47,601.9,4.7672811]
[1746661083939,1.27196305,602.46,601.9,4.7672811]
[1746661084135,1.27196305,602.45,601.9,4.7672811]
[1746661084338,2.27453455,602.44,601.9,4.7672811]
[1746661084540,1.27196305,602.43,601.9,4.7672811]
[1746661084742,2.27453455,602.42,601.9,4.7672811]
[1746661084935,2.2751662,602.41,601.9,3.5072811]
[1746661085141,1.0025715,602.41,601.9,3.5072811]
[1746661085341,1.2726011,602.4,601.9,3.5072811]
[1746661085641,1.0025715,602.41,601.9,3.5072811]
[1746661085835,0.28895615,602.71,601.9,3.5072811]
[1746661085836,1.0025715,602.39,601.9,3.5072811]
[1746661086341,1.0025715,602.38,601.9,3.5072811]
[1746661086936,1.0025715,602.37,601.9,3.5072811]
[1746661087238,1.0025715,602.37,601.9,2.5862811]
[1746661087441,1.0025715,602.36,601.9,2.5862811]
[1746661088145,1.0025715,602.35,601.9,2.5862811]
[1746661088442,0.28896334,602.71,601.9,2.5862811]
[1746661088641,1.27209319,602.7,601.9,2.5862811]
[1746661088941,1.27209319,602.69,601.9,2.5862811]
[1746661089142,2.27465946,602.68,601.9,2.5862811]
[1746661089442,2.27465946,602.67,601.9,2.5862811]
[1746661089643,1.27209319,602.66,601.9,2.5862811]
[1746661089943,1.27209319,602.65,601.9,2.5862811]
[1746661090141,1.27209319,602.64,601.9,2.5862811]
[1746661090441,2.27465946,602.63,601.9,2.5862811]
[1746661090642,1.27209319,602.62,601.9,3.4972811]
[1746661090841,1.27209319,602.61,601.9,3.4972811]
[1746661091142,1.27209319,602.6,601.9,3.4972811]
[1746661091442,1.27209319,602.59,601.9,3.4972811]
[1746661091737,1.27209319,602.58,601.9,3.4972811]
[1746661091942,1.27209319,602.57,601.9,3.4972811]
[1746661092244,2.27465946,602.56,601.9,3.4972811]
[1746661092444,1.27209319,602.55,601.9,3.4972811]
[1746661092642,2.27465946,602.54,601.9,3.4972811]
[1746661092839,1.27209319,602.53,601.9,3.4972811]
[1746661093045,1.27209319,602.52,601.9,3.4972811]
[1746661093340,1.27209319,602.51,601.9,3.4972811]
[1746661093545,1.27195909,602.5,601.9,3.4972811]
[1746661093744,1.27195909,602.49,601.9,3.4972811]
[1746661093945,1.27195909,602.48,601.9,3.4972811]
[1746661094245,2.27452536,602.47,601.9,3.4972811]
[1746661094447,1.27103651,602.46,601.9,3.4972811]
[1746661094645,1.27103651,602.45,601.9,3.4972811]
[1746661094846,1.27103651,602.44,601.9,3.4972811]
[1746661095045,1.27103651,602.43,601.9,3.4972811]
[1746661095243,1.27103651,602.42,601.9,3.4972811]
[1746661095447,2.27360278,602.41,601.9,3.4972811]
[1746661095748,2.27360278,602.4,601.9,2.5812811]
[1746661096046,1.00256627,602.4,601.9,2.5812811]
[1746661096547,0.28893935,602.79,601.9,2.5812811]
[1746661096746,1.27059967,602.78,601.9,2.5812811]
[1746661096949,2.27247145,602.77,601.9,2.5812811]
[1746661097143,1.27059967,602.76,601.9,2.5812811]
[1746661097346,1.27059967,602.75,601.9,2.5812811]
[1746661097546,2.27247145,602.74,601.9,2.5812811]
[1746661097741,1.27059967,602.73,601.9,2.5812811]
[1746661097946,1.27059967,602.72,601.9,2.5812811]
[1746661098151,1.27059967,602.71,601.9,3.7102811]
[1746661098343,2.27247145,602.7,601.9,3.7102811]
[1746661098648,2.27247145,602.69,601.9,3.7102811]
[1746661098845,1.27059967,602.68,601.9,3.7102811]
[1746661099042,1.27059967,602.67,601.9,3.7102811]
[1746661099251,1.27059967,602.66,601.9,3.7102811]
[1746661099551,1.27059967,602.65,601.9,3.7102811]
[1746661099751,2.27247145,602.64,601.9,3.7102811]
[1746661099950,1.27059967,602.63,601.9,3.7102811]
[1746661100149,1.27059967,602.62,601.9,3.7102811]
[1746661100448,2.27247145,602.61,601.9,3.7102811]
[1746661100649,2.27247145,602.6,601.9,3.7102811]
[1746661100949,1.27059967,602.59,601.9,3.7102811]
[1746661101149,1.27059967,602.58,601.9,3.7102811]
[1746661101449,1.27059967,602.57,601.9,3.7102811]
[1746661101646,1.27059967,602.56,601.9,3.7102811]
[1746661101847,2.27247145,602.55,601.9,3.7102811]
[1746661102146,1.27059967,602.54,601.9,3.7102811]
[1746661102343,1.27059967,602.53,601.9,3.7102811]
[1746661102547,1.26974967,602.52,601.9,3.7102811]
[1746661102849,2.27162145,602.51,601.9,3.7102811]
[1746661103050,1.26977698,602.5,601.9,3.7102811]
[1746661103349,1.26977698,602.49,601.9,3.7102811]
[1746661103549,1.00187178,602.48,601.9,3.7102811]
[1746661104150,1.00187178,602.47,601.9,3.7102811]
[1746661104650,1.00187178,602.46,601.9,3.7102811]
[1746661105450,1.00187178,602.45,601.9,3.7102811]
[1746661105846,1.00187178,602.44,601.9,3.7102811]
[1746661106449,0.28892496,602.83,601.9,3.7102811]
[1746661106649,1.27068852,602.82,601.9,3.7102811]
[1746661106852,1.27068852,602.81,601.9,4.7362811]
[1746661107144,2.27271524,602.8,601.9,4.7362811]
[1746661107350,1.27068852,602.79,601.9,4.7362811]
[1746661107550,1.27068852,602.78,601.9,4.7362811]
[1746661107755,2.27271524,602.77,601.9,4.7362811]
[1746661108050,2.27271524,602.76,601.9,4.7362811]
[1746661108252,1.27068852,602.75,601.9,4.7362811]
[1746661108449,1.27068852,602.74,601.9,4.7362811]
[1746661108646,1.27068852,602.73,601.9,4.7362811]
[1746661108850,1.27068852,602.72,601.9,4.7362811]
[1746661109051,2.27271524,602.71,601.9,4.7362811]
[1746661109250,1.27068852,602.7,601.9,4.7362811]